fUSD/lending_fUSD_20260512
["ID","MTS","AMOUNT","RATE_DAILY","PERIOD"]
[422059129,1778538640000,-150.0,0.00033749,7]
[422059130,1778538640000,-150.0,0.00033832,7]
[422059135,1778538640000,-350.0,0.00033973,5]
[422059134,1778538640000,-150.0,0.00033959,7]
[422059127,1778538640000,-150.0,0.00033705,7]
[422059140,1778538640000,-150.0,0.00034095,7]
[422059137,1778538640000,-12052.8361947,0.00034,7]
[422059150,1778538640000,-150.0,0.00034268,7]
[422059148,1778538640000,-150.0,0.00034212,7]
[422059146,1778538640000,-151.0,0.000342,7]
[422059139,1778538640000,-150.0,0.00034086,7]
[422059144,1778538640000,-38542.17374256,0.000342,2]
[422059142,1778538640000,-458.1,0.00034182,7]
[422059145,1778538640000,-485.728556,0.000342,2]
[422059141,1778538640000,-150.0,0.00034181,7]
[422059143,1778538640000,-299.22462592,0.0003419,2]
[422059138,1778538640000,-150.0,0.00034008,7]
[422059136,1778538640000,-151.0,0.00033997,14]
[422059217,1778538641000,-1895.35308947,0.00035553,120]
[422059223,1778538641000,-151.0,0.00035616,7]
[422059222,1778538641000,-158.58,0.00035616,60]
[422059218,1778538641000,-1114.75222965,0.00035587,7]
[422059215,1778538641000,-410.0,0.0003553,30]
[422059213,1778538641000,-1895.35308947,0.00035525,120]
[422059210,1778538641000,-152.88,0.00035498,120]
[422059216,1778538641000,-992.93821703,0.00035549,120]
[422059212,1778538641000,-992.93821703,0.00035517,120]
[422059211,1778538641000,-1895.35308947,0.00035508,120]
[422059214,1778538641000,-181.0,0.0003553,30]
[422059225,1778538641000,-500.0,0.00035616,7]
[422059235,1778538641000,-500.0,0.00035616,7]
[422059226,1778538641000,-500.0,0.00035616,7]
[422059229,1778538641000,-500.0,0.00035616,7]
[422059227,1778538641000,-500.0,0.00035616,7]
[422059230,1778538641000,-500.0,0.00035616,7]
[422059228,1778538641000,-500.0,0.00035616,7]
[422059232,1778538641000,-500.0,0.00035616,7]
[422059231,1778538641000,-500.0,0.00035616,7]
[422059234,1778538641000,-500.0,0.00035616,7]
[422059233,1778538641000,-500.0,0.00035616,7]
[422059236,1778538641000,-500.0,0.00035616,7]
[422059238,1778538641000,-500.0,0.00035616,7]
[422059240,1778538641000,-500.0,0.00035616,7]
[422059220,1778538641000,-25000.0,0.00035616,10]
[422059224,1778538641000,-500.0,0.00035616,7]
[422059219,1778538641000,-25000.0,0.00035607,10]
[422059205,1778538641000,-150.0,0.00035479,7]
[422059209,1778538641000,-2662.6320686,0.00035496,2]
[422059239,1778538641000,-500.0,0.00035616,7]
[422059183,1778538641000,-350.0,0.00034931,5]
[422059184,1778538641000,-150.0,0.0003496,7]
[422059186,1778538641000,-150.0,0.00035047,7]
[422059187,1778538641000,-150.0,0.00035099,7]
[422059185,1778538641000,-150.0,0.00034973,7]
[422059195,1778538641000,-150.0,0.00035306,7]
[422059190,1778538641000,-1500.0,0.000352,7]
[422059196,1778538641000,-150.0,0.00035353,7]
[422059189,1778538641000,-1895.35308947,0.00035193,120]
[422059194,1778538641000,-150.0,0.00035226,7]
[422059188,1778538641000,-150.0,0.00035133,7]
[422059221,1778538641000,-18742.73606384,0.00035616,10]
[422059192,1778538641000,-1895.35308947,0.00035218,120]
[422059191,1778538641000,-3628.0,0.00035213,2]
[422059198,1778538641000,-992.93821703,0.00035355,120]
[422059207,1778538641000,-142237.5034753,0.00035496,2]
[422059197,1778538641000,-150.0,0.00035353,7]
[422059206,1778538641000,-150.0,0.00035479,7]
[422059208,1778538641000,-18119.2464766,0.00035496,2]
[422059199,1778538641000,-992.93821703,0.00035367,120]
[422059200,1778538641000,-150.0,0.00035393,7]
[422059201,1778538641000,-992.93821703,0.0003542,120]
[422059204,1778538641000,-150.0,0.00035479,7]
[422059202,1778538641000,-337.0,0.00035437,2]
[422059203,1778538641000,-150.0,0.00035479,7]
[422059193,1778538641000,-150.0,0.0003522,7]
[422059182,1778538641000,-712.27328016,0.0003492,2]
[422059237,1778538641000,-475.64867321,0.00035616,7]
[422059242,1778538641000,-500.0,0.00035616,7]
[422059270,1778538641000,-152.0,0.00035999,14]
[422059280,1778538641000,-174.61919141,0.00035999,14]
[422059271,1778538641000,-152.0,0.00035999,14]
[422059272,1778538641000,-152.0,0.00035999,14]
[422059274,1778538641000,-152.0,0.00035999,14]
[422059273,1778538641000,-152.0,0.00035999,14]
[422059275,1778538641000,-152.0,0.00035999,14]
[422059282,1778538641000,-151.0,0.00035999,14]
[422059292,1778538641000,-267.72012268,0.00035999,14]
[422059283,1778538641000,-187.78006525,0.00035999,14]
[422059281,1778538641000,-181.08010149,0.00035999,14]
[422059285,1778538641000,-194.72792766,0.00035999,14]
[422059284,1778538641000,-151.0,0.00035999,14]
[422059291,1778538641000,-151.0,0.00035999,14]
[422059287,1778538641000,-228.02704618,0.00035999,14]
[422059289,1778538641000,-151.0,0.00035999,14]
[422059286,1778538641000,-151.0,0.00035999,14]
[422059288,1778538641000,-201.93286099,0.00035999,14]
[422059290,1778538641000,-209.40437684,0.00035999,14]
[422059294,1778538641000,-151.0,0.00035999,14]
[422059296,1778538641000,-152.0,0.00036008,7]
[422059300,1778538641000,-458.1,0.00036153,30]
[422059297,1778538641000,-196.62564625,0.00036009,2]
[422059298,1778538641000,-1038.86,0.00036048,7]
[422059295,1778538641000,-1364.78122059,0.00036,45]
[422059299,1778538641000,-517.93372709,0.00036048,120]
[422059251,1778538641000,-500.0,0.00035616,7]
[422059279,1778538641000,-151.0,0.00035999,14]
[422059278,1778538641000,-152.0,0.00035999,14]
[422059293,1778538641000,-151.0,0.00035999,14]
[422059269,1778538641000,-200.0,0.00035999,14]
[422059276,1778538641000,-151.0,0.00035999,14]
[422059252,1778538641000,-500.0,0.00035616,7]
[422059250,1778538641000,-500.0,0.00035616,7]
[422059241,1778538641000,-500.0,0.00035616,7]
[422059246,1778538641000,-500.0,0.00035616,7]
[422059245,1778538641000,-500.0,0.00035616,7]
[422059244,1778538641000,-500.0,0.00035616,7]
[422059248,1778538641000,-500.0,0.00035616,7]
[422059249,1778538641000,-500.0,0.00035616,7]
[422059247,1778538641000,-500.0,0.00035616,7]
[422059254,1778538641000,-992.93821703,0.0003562,120]
[422059266,1778538641000,-150.0,0.00035981,2]
[422059264,1778538641000,-350.0,0.0003589,5]
[422059265,1778538641000,-400.0,0.0003597,2]
[422059243,1778538641000,-500.0,0.00035616,7]
[422059260,1778538641000,-697.12824258,0.00035714,120]
[422059256,1778538641000,-917.55,0.000357,7]
[422059277,1778538641000,-151.0,0.00035999,14]
[422059268,1778538641000,-200.0,0.00035999,14]
[422059262,1778538641000,-759.34070775,0.0003583,7]
[422059258,1778538641000,-1895.35308947,0.00035709,120]
[422059261,1778538641000,-152.0,0.00035787,7]
[422059267,1778538641000,-200.0,0.00035999,14]
[422059257,1778538641000,-1020.51673943,0.000357,50]
[422059259,1778538641000,-1000.0,0.00035712,15]
[422059263,1778538641000,-511.0,0.00035845,13]
[422059253,1778538641000,-182.44,0.00035616,2]
[422059255,1778538641000,-992.93821703,0.00035633,120]
[422059353,1778538642000,-310.66975949,0.00037004,2]
[422059341,1778538642000,-477.44778443,0.00037004,2]
[422059339,1778538642000,-300.0,0.00037004,2]
[422059333,1778538642000,-300.0,0.00037004,2]
[422059338,1778538642000,-300.0,0.00037004,2]
[422059334,1778538642000,-300.0,0.00037004,2]
[422059336,1778538642000,-300.0,0.00037004,2]
[422059337,1778538642000,-300.0,0.00037004,2]
[422059335,1778538642000,-300.98459457,0.00037004,2]
[422059332,1778538642000,-300.0,0.00037004,2]
[422059343,1778538642000,-301.57273868,0.00037004,2]
[422059340,1778538642000,-391.90059939,0.00037004,2]
[422059342,1778538642000,-731.94902989,0.00037004,2]
[422059352,1778538642000,-300.0,0.00037004,2]
[422059345,1778538642000,-300.34921583,0.00037004,2]
[422059347,1778538642000,-853.56388588,0.00037004,2]
[422059344,1778538642000,-300.0,0.00037004,2]
[422059350,1778538642000,-300.0,0.00037004,2]
[422059351,1778538642000,-1808.59399067,0.00037004,2]
[422059349,1778538642000,-1146.33732402,0.00037004,2]
[422059348,1778538642000,-300.0,0.00037004,2]
[422059355,1778538642000,-300.0,0.00037004,2]
[422059354,1778538642000,-463.51183089,0.00037004,2]
[422059357,1778538642000,-300.0,0.00037004,2]
[422059360,1778538642000,-300.0,0.00037004,2]
[422059331,1778538642000,-300.0,0.00037004,2]
[422059346,1778538642000,-300.0,0.00037004,2]
[422059330,1778538642000,-451.58065097,0.00037004,2]
[422059305,1778538642000,-10000.0,0.000365,30]
[422059329,1778538642000,-310.66975949,0.00037004,2]
[422059304,1778538642000,-5156.74325631,0.000365,10]
[422059306,1778538642000,-181.0,0.0003653,30]
[422059302,1778538642000,-697.12824258,0.00036274,120]
[422059301,1778538642000,-723.84274393,0.00036225,120]
[422059303,1778538642000,-164.0,0.00036427,11]
[422059308,1778538642000,-167.84,0.00036554,120]
[422059319,1778538642000,-10000.0,0.00037,2]
[422059320,1778538642000,-150.0,0.00037,2]
[422059318,1778538642000,-152.0,0.00036974,5]
[422059361,1778538642000,-300.0,0.00037004,2]
[422059309,1778538642000,-263.79705615,0.00036601,7]
[422059310,1778538642000,-454.31,0.00036685,7]
[422059307,1778538642000,-410.0,0.0003653,30]
[422059321,1778538642000,-180.689,0.00037,2]
[422059311,1778538642000,-454.31,0.00036795,7]
[422059316,1778538642000,-250.0,0.00036939,7]
[422059312,1778538642000,-1636.43801274,0.000368,2]
[422059317,1778538642000,-707.95288962,0.00036941,2]
[422059314,1778538642000,-350.0,0.00036849,5]
[422059313,1778538642000,-636.03,0.00036847,7]
[422059315,1778538642000,-1500.0,0.000369,13]
[422059322,1778538642000,-365.0,0.00037,2]
[422059326,1778538642000,-5000.0,0.00037,3]
[422059324,1778538642000,-4500.0,0.00037,2]
[422059325,1778538642000,-917.55,0.00037,7]
[422059328,1778538642000,-1808.59399067,0.00037004,2]
[422059327,1778538642000,-300.0,0.00037004,2]
[422059323,1778538642000,-168.35059835,0.00037,2]
[422059358,1778538642000,-300.0,0.00037004,2]
[422059417,1778538642000,-300.0,0.00037004,2]
[422059356,1778538642000,-451.58065097,0.00037004,2]
[422059393,1778538642000,-300.0,0.00037004,2]
[422059394,1778538642000,-853.56388588,0.00037004,2]
[422059395,1778538642000,-1911.04728991,0.00037004,2]
[422059396,1778538642000,-300.0,0.00037004,2]
[422059397,1778538642000,-343.72939414,0.00037004,2]
[422059401,1778538642000,-309.36305204,0.00037004,2]
[422059400,1778538642000,-300.0,0.00037004,2]
[422059399,1778538642000,-300.0,0.00037004,2]
[422059398,1778538642000,-526.51104629,0.00037004,2]
[422059402,1778538642000,-1146.33732402,0.00037004,2]
[422059404,1778538642000,-863.82204897,0.00037004,2]
[422059406,1778538642000,-300.0,0.00037004,2]
[422059392,1778538642000,-300.0,0.00037004,2]
[422059408,1778538642000,-300.0,0.00037004,2]
[422059409,1778538642000,-1808.59399067,0.00037004,2]
[422059411,1778538642000,-300.0,0.00037004,2]
[422059416,1778538642000,-463.51183089,0.00037004,2]
[422059410,1778538642000,-300.0,0.00037004,2]
[422059412,1778538642000,-300.0,0.00037004,2]
[422059413,1778538642000,-310.66975949,0.00037004,2]
[422059414,1778538642000,-300.0,0.00037004,2]
[422059419,1778538642000,-300.0,0.00037004,2]
[422059418,1778538642000,-451.58065097,0.00037004,2]
[422059421,1778538642000,-300.0,0.00037004,2]
[422059420,1778538642000,-300.0,0.00037004,2]
[422059422,1778538642000,-300.0,0.00037004,2]
[422059415,1778538642000,-300.0,0.00037004,2]
[422059385,1778538642000,-301.57273868,0.00037004,2]
[422059362,1778538642000,-483.72999423,0.00037004,2]
[422059388,1778538642000,-300.34921583,0.00037004,2]
[422059387,1778538642000,-301.62826357,0.00037004,2]
[422059359,1778538642000,-300.0,0.00037004,2]
[422059364,1778538642000,-300.0,0.00037004,2]
[422059363,1778538642000,-300.0,0.00037004,2]
[422059366,1778538642000,-300.0,0.00037004,2]
[422059377,1778538642000,-300.0,0.00037004,2]
[422059368,1778538642000,-300.0,0.00037004,2]
[422059378,1778538642000,-391.90059939,0.00037004,2]
[422059376,1778538642000,-300.0,0.00037004,2]
[422059367,1778538642000,-300.98459457,0.00037004,2]
[422059370,1778538642000,-300.0,0.00037004,2]
[422059369,1778538642000,-300.0,0.00037004,2]
[422059371,1778538642000,-300.0,0.00037004,2]
[422059365,1778538642000,-300.0,0.00037004,2]
[422059375,1778538642000,-300.0,0.00037004,2]
[422059389,1778538642000,-300.0,0.00037004,2]
[422059373,1778538642000,-300.0,0.00037004,2]
[422059382,1778538642000,-300.0,0.00037004,2]
[422059379,1778538642000,-300.0,0.00037004,2]
[422059383,1778538642000,-312.76873905,0.00037004,2]
[422059386,1778538642000,-300.0,0.00037004,2]
[422059384,1778538642000,-725.54702679,0.00037004,2]
[422059390,1778538642000,-300.0,0.00037004,2]
[422059391,1778538642000,-300.0,0.00037004,2]
[422059380,1778538642000,-527.3647239,0.00037004,2]
[422059374,1778538642000,-492.3302404,0.00037004,2]
[422059372,1778538642000,-300.0,0.00037004,2]
[422059381,1778538642000,-892.74772387,0.00037004,2]
[422059463,1778538643000,-300.0,0.00037004,2]
[422059459,1778538643000,-300.34921583,0.00037004,2]
[422059462,1778538643000,-300.0,0.00037004,2]
[422059464,1778538643000,-300.0,0.00037004,2]
[422059465,1778538643000,-853.56388588,0.00037004,2]
[422059454,1778538643000,-300.0,0.00037004,2]
[422059455,1778538643000,-725.54702679,0.00037004,2]
[422059458,1778538643000,-300.0,0.00037004,2]
[422059456,1778538643000,-301.57273868,0.00037004,2]
[422059457,1778538643000,-300.0,0.00037004,2]
[422059460,1778538643000,-300.0,0.00037004,2]
[422059461,1778538643000,-300.0,0.00037004,2]
[422059467,1778538643000,-1911.04728991,0.00037004,2]
[422059482,1778538643000,-310.66975949,0.00037004,2]
[422059474,1778538643000,-309.36305204,0.00037004,2]
[422059475,1778538643000,-300.0,0.00037004,2]
[422059477,1778538643000,-300.0,0.00037004,2]
[422059469,1778538643000,-343.72939414,0.00037004,2]
[422059466,1778538643000,-300.0,0.00037004,2]
[422059468,1778538643000,-300.0,0.00037004,2]
[422059471,1778538643000,-300.0,0.00037004,2]
[422059472,1778538643000,-300.0,0.00037004,2]
[422059470,1778538643000,-526.51104629,0.00037004,2]
[422059478,1778538643000,-1808.59399067,0.00037004,2]
[422059481,1778538643000,-300.0,0.00037004,2]
[422059451,1778538643000,-300.0,0.00037004,2]
[422059473,1778538643000,-1146.33732402,0.00037004,2]
[422059452,1778538643000,-892.74772387,0.00037004,2]
[422059435,1778538643000,-300.0,0.00037004,2]
[422059447,1778538643000,-300.0,0.00037004,2]
[422059425,1778538643000,-300.0,0.00037004,2]
[422059423,1778538643000,-483.72999423,0.00037004,2]
[422059424,1778538643000,-300.0,0.00037004,2]
[422059427,1778538643000,-300.0,0.00037004,2]
[422059428,1778538643000,-300.0,0.00037004,2]
[422059426,1778538643000,-300.0,0.00037004,2]
[422059429,1778538643000,-1093.93728263,0.00037004,2]
[422059431,1778538643000,-300.0,0.00037004,2]
[422059433,1778538643000,-300.0,0.00037004,2]
[422059434,1778538643000,-300.0,0.00037004,2]
[422059432,1778538643000,-300.0,0.00037004,2]
[422059430,1778538643000,-300.0,0.00037004,2]
[422059437,1778538643000,-300.0,0.00037004,2]
[422059441,1778538643000,-300.0,0.00037004,2]
[422059440,1778538643000,-492.3302404,0.00037004,2]
[422059479,1778538643000,-300.0,0.00037004,2]
[422059439,1778538643000,-300.0,0.00037004,2]
[422059436,1778538643000,-300.0,0.00037004,2]
[422059442,1778538643000,-300.0,0.00037004,2]
[422059438,1778538643000,-300.0,0.00037004,2]
[422059443,1778538643000,-300.0,0.00037004,2]
[422059444,1778538643000,-300.0,0.00037004,2]
[422059450,1778538643000,-527.3647239,0.00037004,2]
[422059453,1778538643000,-300.0,0.00037004,2]
[422059449,1778538643000,-300.0,0.00037004,2]
[422059448,1778538643000,-300.0,0.00037004,2]
[422059445,1778538643000,-300.0,0.00037004,2]
[422059446,1778538643000,-604.01726543,0.00037004,2]
[422059480,1778538643000,-300.0,0.00037004,2]
[422059476,1778538643000,-863.82204897,0.00037004,2]
[422059485,1778538643000,-463.51183089,0.00037004,2]
[422059525,1778538643000,-300.0,0.00037041,2]
[422059526,1778538643000,-300.0,0.00037041,2]
[422059524,1778538643000,-300.0,0.00037041,2]
[422059521,1778538643000,-300.0,0.00037041,2]
[422059517,1778538643000,-300.0,0.00037041,2]
[422059518,1778538643000,-300.0,0.00037041,2]
[422059523,1778538643000,-364.15096112,0.00037041,2]
[422059516,1778538643000,-300.0,0.00037041,2]
[422059519,1778538643000,-300.0,0.00037041,2]
[422059520,1778538643000,-300.0,0.00037041,2]
[422059522,1778538643000,-492.3302404,0.00037041,2]
[422059527,1778538643000,-300.0,0.00037041,2]
[422059529,1778538643000,-300.0,0.00037041,2]
[422059537,1778538643000,-725.54702679,0.00037041,2]
[422059532,1778538643000,-527.3647239,0.00037041,2]
[422059530,1778538643000,-300.0,0.00037041,2]
[422059531,1778538643000,-300.0,0.00037041,2]
[422059536,1778538643000,-300.0,0.00037041,2]
[422059538,1778538643000,-300.0,0.00037041,2]
[422059528,1778538643000,-604.01726543,0.00037041,2]
[422059535,1778538643000,-892.74772387,0.00037041,2]
[422059534,1778538643000,-1066.14755251,0.00037041,2]
[422059533,1778538643000,-300.0,0.00037041,2]
[422059483,1778538643000,-300.0,0.00037004,2]
[422059539,1778538643000,-301.57273868,0.00037041,2]
[422059542,1778538643000,-300.34921583,0.00037041,2]
[422059541,1778538643000,-300.0,0.00037041,2]
[422059514,1778538643000,-1974.2236853,0.00037041,2]
[422059515,1778538643000,-300.0,0.00037041,2]
[422059540,1778538643000,-300.0,0.00037041,2]
[422059506,1778538643000,-300.0,0.00037004,2]
[422059508,1778538643000,-300.0,0.00037004,2]
[422059486,1778538643000,-300.0,0.00037004,2]
[422059487,1778538643000,-576.75052358,0.00037004,2]
[422059499,1778538643000,-300.0,0.00037004,2]
[422059496,1778538643000,-300.0,0.00037004,2]
[422059490,1778538643000,-300.0,0.00037004,2]
[422059488,1778538643000,-451.58065097,0.00037004,2]
[422059493,1778538643000,-300.0,0.00037004,2]
[422059489,1778538643000,-300.0,0.00037004,2]
[422059492,1778538643000,-300.0,0.00037004,2]
[422059495,1778538643000,-300.0,0.00037004,2]
[422059498,1778538643000,-300.0,0.00037004,2]
[422059491,1778538643000,-300.0,0.00037004,2]
[422059484,1778538643000,-300.0,0.00037004,2]
[422059494,1778538643000,-483.72999423,0.00037004,2]
[422059500,1778538643000,-1093.93728263,0.00037004,2]
[422059505,1778538643000,-300.0,0.00037004,2]
[422059507,1778538643000,-300.0,0.00037004,2]
[422059503,1778538643000,-300.0,0.00037004,2]
[422059512,1778538643000,-1075.68288069,0.00037041,2]
[422059509,1778538643000,-300.0,0.00037004,2]
[422059511,1778538643000,-151.0,0.00037041,7]
[422059497,1778538643000,-300.0,0.00037004,2]
[422059513,1778538643000,-1911.04728991,0.00037041,2]
[422059504,1778538643000,-300.0,0.00037004,2]
[422059510,1778538643000,-44133.0,0.00037014,120]
[422059501,1778538643000,-300.0,0.00037004,2]
[422059502,1778538643000,-300.0,0.00037004,2]
[422059580,1778538644000,-300.0,0.00037041,2]
[422059570,1778538644000,-576.75052358,0.00037041,2]
[422059572,1778538644000,-300.0,0.00037041,2]
[422059573,1778538644000,-300.0,0.00037041,2]
[422059576,1778538644000,-300.0,0.00037041,2]
[422059575,1778538644000,-300.0,0.00037041,2]
[422059574,1778538644000,-300.0,0.00037041,2]
[422059577,1778538644000,-483.72999423,0.00037041,2]
[422059579,1778538644000,-300.0,0.00037041,2]
[422059578,1778538644000,-300.0,0.00037041,2]
[422059591,1778538644000,-300.0,0.00037041,2]
[422059582,1778538644000,-300.0,0.00037041,2]
[422059584,1778538644000,-1093.93728263,0.00037041,2]
[422059581,1778538644000,-1117.14215031,0.00037041,2]
[422059583,1778538644000,-300.0,0.00037041,2]
[422059571,1778538644000,-451.58065097,0.00037041,2]
[422059585,1778538644000,-300.0,0.00037041,2]
[422059589,1778538644000,-300.0,0.00037041,2]
[422059587,1778538644000,-300.0,0.00037041,2]
[422059586,1778538644000,-300.0,0.00037041,2]
[422059588,1778538644000,-300.0,0.00037041,2]
[422059593,1778538644000,-300.0,0.00037041,2]
[422059594,1778538644000,-300.0,0.00037041,2]
[422059590,1778538644000,-300.0,0.00037041,2]
[422059569,1778538644000,-300.0,0.00037041,2]
[422059558,1778538644000,-300.0,0.00037041,2]
[422059566,1778538644000,-300.0,0.00037041,2]
[422059592,1778538644000,-300.0,0.00037041,2]
[422059548,1778538644000,-853.56388588,0.00037041,2]
[422059550,1778538644000,-1911.04728991,0.00037041,2]
[422059549,1778538644000,-300.0,0.00037041,2]
[422059546,1778538644000,-300.0,0.00037041,2]
[422059545,1778538644000,-300.0,0.00037041,2]
[422059543,1778538644000,-300.0,0.00037041,2]
[422059544,1778538644000,-300.0,0.00037041,2]
[422059547,1778538644000,-300.0,0.00037041,2]
[422059551,1778538644000,-300.0,0.00037041,2]
[422059553,1778538644000,-300.0,0.00037041,2]
[422059555,1778538644000,-300.0,0.00037041,2]
[422059554,1778538644000,-526.51104629,0.00037041,2]
[422059556,1778538644000,-1146.33732402,0.00037041,2]
[422059561,1778538644000,-1808.59399067,0.00037041,2]
[422059562,1778538644000,-300.0,0.00037041,2]
[422059560,1778538644000,-300.0,0.00037041,2]
[422059559,1778538644000,-863.82204897,0.00037041,2]
[422059552,1778538644000,-343.72939414,0.00037041,2]
[422059564,1778538644000,-300.0,0.00037041,2]
[422059568,1778538644000,-463.51183089,0.00037041,2]
[422059563,1778538644000,-300.0,0.00037041,2]
[422059565,1778538644000,-310.66975949,0.00037041,2]
[422059567,1778538644000,-300.0,0.00037041,2]
[422059557,1778538644000,-309.36305204,0.00037041,2]
[422059601,1778538644000,-300.0,0.00037041,2]
[422059598,1778538644000,-300.0,0.00037041,2]
[422059628,1778538644000,-526.51104629,0.00037041,2]
[422059627,1778538644000,-343.72939414,0.00037041,2]
[422059626,1778538644000,-300.0,0.00037041,2]
[422059635,1778538644000,-300.0,0.00037041,2]
[422059634,1778538644000,-863.82204897,0.00037041,2]
[422059630,1778538644000,-300.0,0.00037041,2]
[422059629,1778538644000,-300.0,0.00037041,2]
[422059633,1778538644000,-300.0,0.00037041,2]
[422059632,1778538644000,-309.36305204,0.00037041,2]
[422059631,1778538644000,-1146.33732402,0.00037041,2]
[422059637,1778538644000,-300.0,0.00037041,2]
[422059639,1778538644000,-300.0,0.00037041,2]
[422059638,1778538644000,-300.0,0.00037041,2]
[422059641,1778538644000,-300.0,0.00037041,2]
[422059643,1778538644000,-463.51183089,0.00037041,2]
[422059642,1778538644000,-300.0,0.00037041,2]
[422059644,1778538644000,-300.0,0.00037041,2]
[422059645,1778538644000,-576.75052358,0.00037041,2]
[422059640,1778538644000,-310.66975949,0.00037041,2]
[422059646,1778538644000,-300.0,0.00037041,2]
[422059647,1778538644000,-451.58065097,0.00037041,2]
[422059648,1778538644000,-300.0,0.00037041,2]
[422059595,1778538644000,-300.0,0.00037041,2]
[422059625,1778538644000,-1911.04728991,0.00037041,2]
[422059616,1778538644000,-300.0,0.00037041,2]
[422059636,1778538644000,-1808.59399067,0.00037041,2]
[422059621,1778538644000,-300.0,0.00037041,2]
[422059597,1778538644000,-492.3302404,0.00037041,2]
[422059623,1778538644000,-853.56388588,0.00037041,2]
[422059596,1778538644000,-300.0,0.00037041,2]
[422059599,1778538644000,-300.0,0.00037041,2]
[422059600,1778538644000,-300.0,0.00037041,2]
[422059605,1778538644000,-300.0,0.00037041,2]
[422059604,1778538644000,-300.0,0.00037041,2]
[422059607,1778538644000,-527.3647239,0.00037041,2]
[422059602,1778538644000,-300.0,0.00037041,2]
[422059611,1778538644000,-589.94276083,0.00037041,2]
[422059612,1778538644000,-725.54702679,0.00037041,2]
[422059609,1778538644000,-1066.14755251,0.00037041,2]
[422059606,1778538644000,-300.0,0.00037041,2]
[422059608,1778538644000,-300.0,0.00037041,2]
[422059620,1778538644000,-300.0,0.00037041,2]
[422059622,1778538644000,-300.0,0.00037041,2]
[422059613,1778538644000,-300.0,0.00037041,2]
[422059619,1778538644000,-300.0,0.00037041,2]
[422059615,1778538644000,-300.0,0.00037041,2]
[422059618,1778538644000,-300.0,0.00037041,2]
[422059614,1778538644000,-301.57273868,0.00037041,2]
[422059624,1778538644000,-300.0,0.00037041,2]
[422059603,1778538644000,-604.01726543,0.00037041,2]
[422059610,1778538644000,-892.74772387,0.00037041,2]
[422059617,1778538644000,-300.34921583,0.00037041,2]
[422059684,1778538645000,-300.0,0.00037041,2]
[422059692,1778538645000,-300.0,0.00037041,2]
[422059687,1778538645000,-1066.14755251,0.00037041,2]
[422059688,1778538645000,-725.54702679,0.00037041,2]
[422059689,1778538645000,-892.74772387,0.00037041,2]
[422059683,1778538645000,-300.0,0.00037041,2]
[422059693,1778538645000,-300.0,0.00037041,2]
[422059685,1778538645000,-527.3647239,0.00037041,2]
[422059674,1778538645000,-300.0,0.00037041,2]
[422059682,1778538645000,-300.0,0.00037041,2]
[422059690,1778538645000,-300.0,0.00037041,2]
[422059686,1778538645000,-300.0,0.00037041,2]
[422059691,1778538645000,-301.57273868,0.00037041,2]
[422059702,1778538645000,-1911.04728991,0.00037041,2]
[422059703,1778538645000,-300.0,0.00037041,2]
[422059704,1778538645000,-343.72939414,0.00037041,2]
[422059697,1778538645000,-300.0,0.00037041,2]
[422059694,1778538645000,-300.34921583,0.00037041,2]